bitfinex/quotes_SOLUSD_20220105
["timestamp","ask_amount","ask_price","bid_price","bid_amount"]
[1641424188166,2.52521779,152.54,152.4,0.25]
[1641424189267,0.25,152.53,152.4,0.25]
[1641424189467,2.52521779,152.54,152.4,0.25]
[1641424189468,2.52521779,152.54,152.43,38.54777042]
[1641424189875,2.52521779,152.54,152.43,39.04777042]
[1641424190672,2.52521779,152.54,152.43,46.96777042]
[1641424191771,2.78521779,152.54,152.43,46.96777042]
[1641424191974,2.78521779,152.54,152.43,8.42]
[1641424192172,4.25837676,152.54,152.43,8.42]
[1641424192773,14.09787676,152.54,152.39,2.93632799]
[1641424192973,14.82907443,152.53,152.39,2.93632799]
[1641424193174,15.07907443,152.53,152.39,2.93632799]
[1641424193376,1.47315897,152.52,152.39,2.93632799]
[1641424193574,2.78372178,152.51,152.39,2.93632799]
[1641424193873,7.92,152.5,152.39,2.93632799]
[1641424194075,3.0,152.48,152.39,2.93632799]
[1641424194276,9.8471,152.44,152.39,2.93632799]
[1641424194474,3.03809765,152.43,152.39,2.93632799]
[1641424194875,3.29809765,152.43,152.39,2.93632799]
[1641424195276,10.1067,152.43,152.28,7.92]
[1641424195476,11.57985897,152.43,152.28,7.92]
[1641424195875,12.07985897,152.43,152.28,7.92]
[1641424196276,30.63380327,152.42,152.29,29.48767611]
[1641424196476,9.8491,152.39,152.29,39.33677611]
[1641424196680,2.76839317,152.38,152.29,39.33677611]
[1641424196877,2.76839317,152.38,152.29,39.83677611]
[1641424197079,3.02839317,152.38,152.29,39.83677611]
[1641424197979,12.87809317,152.38,152.29,39.83677611]
[1641424199183,3.02839317,152.38,152.29,39.83677611]
[1641424199380,2.76839317,152.38,152.29,39.83677611]
[1641424199981,32.8249,152.46,152.29,40.16677611]
[1641424200180,118.5203,152.47,152.31,0.07]
[1641424200380,3.70082744,152.48,152.38,32.83738436]
[1641424200381,13.54462744,152.48,152.38,32.83738436]
[1641424200814,13.54462744,152.48,152.38,33.33738436]
[1641424200979,3.03581428,152.47,152.38,0.5]
[1641424201480,0.25,152.46,152.34,8.42]
[1641424201781,3.03581428,152.47,152.34,6.6297836]
[1641424201979,3.03581428,152.47,152.35,31.63075939]
[1641424202379,12.20588636,152.46,152.35,41.97565939]
[1641424202582,3.03581428,152.47,152.35,41.97565939]
[1641424202981,1.47315897,152.46,152.35,41.97565939]
[1641424203480,9.8425,152.49,152.39,9.8425]
[1641424203682,79.60682744,152.52,152.38,7.92]
[1641424203880,75.906,152.52,152.39,7.92]
[1641424204083,75.906,152.52,152.39,7.99]
[1641424204284,75.906,152.52,152.39,8.49]
[1641424204483,78.62408584,152.52,152.4,29.55516074]
[1641424204784,78.62408584,152.52,152.4,37.47516074]
[1641424204985,3.70082744,152.54,152.45,9.8388]
[1641424205184,9.25389401,152.62,152.54,3.7]
[1641424205385,3.70860847,152.57,152.54,4.2]
[1641424205586,9.25389401,152.67,152.55,47.0]
[1641424205785,9.25389401,152.67,152.55,47.25]
[1641424205986,9.25389401,152.67,152.6,9.8291]
[1641424206187,9.25389401,152.67,152.59,7.92]
[1641424206386,197.83909401,152.78,152.6,7.92]
[1641424206789,197.83909401,152.78,152.6,8.42]
[1641424206988,12.76277463,152.77,152.64,9.8263]
[1641424207185,2.93667463,152.77,152.65,22.41985902]
[1641424207389,9.25389401,152.78,152.67,0.07]
[1641424207588,9.25389401,152.82,152.68,7.92]
[1641424207987,9.25389401,152.82,152.69,0.25]
[1641424208386,2.34620391,152.81,152.69,25.50293409]
[1641424208586,2.34620391,152.81,152.7,7.92]
[1641424208886,2.34620391,152.81,152.7,8.42]
[1641424209691,3.0,152.79,152.7,8.42]
[1641424209899,2.37039411,152.78,152.71,9.8214]
[1641424210092,2.37039411,152.78,152.7,8.42]
[1641424210492,0.25,152.77,152.7,8.42]
[1641424211495,23.29692,152.77,152.7,8.42]
[1641424211695,23.29692,152.77,152.66,7.92]
[1641424211898,23.55692,152.77,152.56,169.091]
[1641424212093,23.55692,152.77,152.57,9.46315897]
[1641424212094,1.47315897,152.76,152.57,9.46315897]
[1641424212294,2.28534765,152.75,152.61,9.8278]
[1641424212594,4.01850662,152.75,152.62,31.45723251]
[1641424212793,3.0,152.73,152.62,31.45723251]
[1641424212995,2.86472578,152.72,152.62,31.45723251]
[1641424213194,2.86472578,152.72,152.62,31.95723251]
[1641424213395,3.12472578,152.72,152.62,41.78473251]
[1641424213797,3.12472578,152.72,152.62,31.95723251]
[1641424214198,3.12472578,152.72,152.62,31.45723251]
[1641424214800,12.95312578,152.72,152.62,31.45723251]
[1641424215399,12.95312578,152.72,152.62,31.95723251]
[1641424216021,3.12472578,152.72,152.63,0.25]
[1641424216221,3.12472578,152.72,152.63,7.92]
[1641424216721,2.86472578,152.72,152.63,7.92]
[1641424217320,32.7542,152.79,152.63,7.92]
[1641424217522,23.9502,152.82,152.64,0.32]
[1641424217723,31.4332,152.84,152.66,0.07]
[1641424217724,23.5132,152.84,152.66,0.07]
[1641424217926,23.5132,152.84,152.67,7.92]
[1641424218121,0.25,152.83,152.68,0.25]
[1641424218322,2.54868085,152.82,152.69,7.99]
[1641424218722,2.54868085,152.82,152.7,0.25]
[1641424218923,2.54868085,152.82,152.73,9.8204]
[1641424219125,2.54868085,152.82,152.72,28.40119636]
[1641424219528,2.54868085,152.82,152.72,28.90119636]
[1641424220223,1.54868085,152.82,152.72,28.90119636]
[1641424220631,1.54868085,152.82,152.73,0.25]
[1641424221624,1.54868085,152.82,152.72,28.90119636]
[1641424221826,1.54868085,152.82,152.72,36.82119636]
[1641424222028,0.25,152.81,152.72,8.42]
[1641424222225,9.8239,152.79,152.72,0.5]
[1641424222426,2.83621522,152.78,152.68,8.42]
[1641424222828,3.09621522,152.78,152.68,8.42]
[1641424223026,2.83621522,152.78,152.69,25.33452822]
[1641424223227,2.83621522,152.78,152.7,7.92]
[1641424223428,2.83621522,152.78,152.7,8.42]
[1641424224429,2.83621522,152.78,152.71,9.8214]
[1641424224629,3.09621522,152.78,152.72,31.64583674]
[1641424224825,2.83621522,152.78,152.72,31.64583674]
[1641424225028,2.83621522,152.78,152.72,32.14583674]
[1641424226031,3.09621522,152.78,152.72,32.14583674]
[1641424226329,0.26,152.78,152.72,32.14583674]
[1641424226528,63.1919024,152.85,152.72,32.14583674]
[1641424226729,66.1919024,152.85,152.72,32.14583674]
[1641424226929,9.8218,152.82,152.72,32.14583674]
[1641424227231,10.0818,152.82,152.72,32.14583674]
[1641424227430,2.70659381,152.81,152.72,32.14583674]
[1641424227728,2.70659381,152.81,152.72,41.96703674]
[1641424229533,9.8202,152.84,152.72,49.88703674]
[1641424229733,1.7912995,152.89,152.73,0.32]
[1641424229932,1.7912995,152.89,152.78,9.8173]
[1641424230532,12.74734783,152.88,152.79,24.94572526]
[1641424230739,12.74734783,152.88,152.78,0.5]
[1641424231143,12.74734783,152.88,152.76,8.42]
[1641424231737,12.74734783,152.88,152.76,35.69430431]
[1641424231738,16.19597168,152.87,152.76,35.69430431]
[1641424231940,9.8191,152.86,152.76,35.69430431]
[1641424232137,2.60568249,152.85,152.76,35.69430431]
[1641424232543,2.86568249,152.85,152.76,8.42]
[1641424233142,0.25,152.84,152.72,7.92]
[1641424233338,0.25,152.84,152.68,7.92]
[1641424233539,35.12730973,152.84,152.69,24.45050761]
[1641424234138,2.3240243,152.82,152.69,24.45050761]
[1641424234563,2.5840243,152.82,152.69,24.45050761]
[1641424234739,9.8234,152.79,152.69,34.27370761]
[1641424234942,9.8234,152.79,152.69,34.77370761]
[1641424235139,2.58430976,152.78,152.69,34.77370761]
[1641424235539,2.84430976,152.78,152.69,34.77370761]
[1641424236139,12.66770976,152.78,152.69,34.27370761]
[1641424236739,0.25,152.77,152.69,34.27370761]
[1641424236940,5.44539206,152.83,152.78,12.91770976]
[1641424237343,5.44539206,152.83,152.79,0.25]
[1641424237545,17.08902646,152.93,152.81,44.0]
[1641424237845,2.33845691,152.93,152.81,44.5]
[1641424238044,2.33845691,152.93,152.82,0.25]
[1641424238242,3.0,152.95,152.84,9.8134]
[1641424238243,9.8142,152.94,152.84,9.8134]
[1641424238742,78.0918,152.96,152.85,27.98584542]
[1641424238943,0.26,152.94,152.85,27.98584542]
[1641424239146,92.9,152.94,152.85,27.98584542]
[1641424239344,92.9,152.94,152.85,36.66132659]
[1641424239546,92.9,152.94,152.86,0.25]
[1641424239945,92.9,152.94,152.86,0.32]
[1641424240147,0.32838815,153.0,152.86,8.24]
[1641424240350,0.32838815,153.0,152.86,8.74]
[1641424240847,0.32838815,153.0,152.86,9.0]
[1641424241047,2.18634943,152.99,152.86,9.0]
[1641424241747,2.18634943,152.99,152.91,9.8089]
[1641424241948,2.18634943,152.99,152.91,10.3089]
[1641424242174,2.18634943,152.99,152.92,26.47487462]
[1641424242975,0.32838815,153.0,152.92,26.97487462]
[1641424243575,0.32838815,153.0,152.92,36.78327462]
[1641424243975,2.9577466,153.0,152.92,36.78327462]
[1641424244379,3.2177466,153.0,152.92,36.78327462]
[1641424244977,0.32838815,153.0,152.92,36.78327462]
[1641424245378,0.32838815,153.0,152.93,10.0573]
[1641424245778,0.32838815,153.0,152.93,10.5573]
[1641424247080,0.32838815,153.0,152.93,18.4773]
[1641424247980,0.32838815,153.0,152.94,0.07]
[1641424248180,0.32838815,153.0,152.97,9.8041]
[1641424248380,0.32838815,153.0,152.98,30.77327153]
[1641424248781,3.02611164,153.0,152.98,0.5]
[1641424248982,9.08611166,153.0,152.92,7.92]
[1641424249181,9.08611166,153.0,152.9,7.92]
[1641424249381,9.08611166,153.0,152.9,8.42]
[1641424249580,9.34611166,153.0,152.9,7.92]
[1641424249782,6.38838817,153.0,152.91,27.89338349]
[1641424249984,6.38838817,153.0,152.91,27.96338349]
[1641424250385,6.38838817,153.0,152.95,9.8063]
[1641424250783,6.38838817,153.0,152.94,24.80415983]
[1641424251386,6.03138577,153.0,152.9,40.6103]
[1641424251586,6.29138577,153.0,152.9,7.92]
[1641424252183,6.29138577,153.0,152.9,8.42]
[1641424252384,24.7550271,153.0,152.9,8.42]
[1641424252783,34.5648271,153.0,152.9,8.42]
[1641424253185,6.03138577,153.0,152.91,0.25]
[1641424253586,6.03138577,153.0,152.91,0.32]
[1641424253786,6.03138577,153.0,152.92,7.92]
[1641424253989,6.03138577,153.0,152.92,8.42]
[1641424254187,6.03138577,153.0,152.96,26.01814289]
[1641424254387,6.03138577,153.0,152.95,9.8063]
[1641424254589,3.01498135,152.99,152.92,8.42]
[1641424254790,3.01498135,152.99,152.86,7.92]
[1641424254988,3.01498135,152.99,152.86,0.5]
[1641424255189,9.8123,152.96,152.87,9.8111]
[1641424255388,2.79758155,152.95,152.87,30.00774683]
[1641424256390,2.79758155,152.95,152.87,39.81934683]
[1641424256791,9.8111,152.98,152.88,0.25]
[1641424256993,72.2881,153.02,152.88,0.25]
[1641424257592,72.2881,153.02,152.87,31.4809058]
[1641424257793,2.59287325,153.01,152.87,31.4809058]
[1641424257991,29.77113699,153.01,152.89,9.8098]
[1641424258392,29.77113699,153.01,152.85,9.39315897]
[1641424258590,30.27113699,153.01,152.85,7.92]
[1641424258794,30.27113699,153.01,152.85,8.42]
[1641424258992,30.27113699,153.01,152.85,7.92]
[1641424259194,2.33693244,152.93,152.82,7.92]
[1641424259391,2.33693244,152.93,152.82,8.42]
[1641424259592,2.33693244,152.93,152.83,0.07]
[1641424260194,2.33693244,152.93,152.85,0.07]
[1641424260393,2.33693244,152.93,152.85,40.93500982]
[1641424261394,32.7089,152.99,152.85,41.43500982]
[1641424261596,123.0119,153.0,152.86,8.17]
[1641424261796,3.0,153.03,152.87,0.07]
[1641424261994,3.092,153.06,152.89,0.07]
[1641424262194,3.092,153.06,152.9,7.92]
[1641424262402,2.22416478,153.05,152.91,28.52682393]
[1641424262599,2.22416478,153.05,152.92,7.92]
[1641424262798,12.03056478,153.05,152.95,9.8064]
[1641424262999,12.03056478,153.05,152.92,8.42]
[1641424264000,12.03056478,153.05,152.95,9.8065]
[1641424264200,3.092,153.06,152.96,8.17]
[1641424264400,3.092,153.06,152.96,8.67]
[1641424265003,3.092,153.06,152.97,28.96715866]
[1641424265201,2.45102682,153.05,152.98,0.25]
[1641424265801,2.45102682,153.05,152.98,10.0542]
[1641424266201,2.45102682,153.05,152.98,9.8042]
[1641424266402,2.45102682,153.05,152.97,7.92]
[1641424267402,12.25692682,153.05,152.97,31.81853187]
[1641424267603,3.6972809,153.04,152.97,31.81853187]
[1641424268427,3.6972809,153.04,152.97,42.12353187]
[1641424269027,3.6972809,153.04,152.98,0.25]
[1641424269228,3.6972809,153.04,152.98,8.17]
[1641424269428,8.09e-05,153.04,153.01,9.8021]
[1641424269628,2.99653708,153.06,153.02,7.95301416]
[1641424269828,0.092,153.06,153.02,8.45301416]
[1641424270232,0.092,153.06,153.03,28.45960601]
[1641424271031,0.092,153.06,153.02,7.92]
[1641424271232,0.092,153.06,153.02,8.42]
[1641424272030,0.092,153.06,153.02,7.92]
[1641424273234,0.092,153.06,153.03,25.33524207]
[1641424273531,0.092,153.06,153.04,0.03301416]
[1641424274131,3.03219997,153.05,153.04,0.03301416]
[1641424274331,0.092,153.06,153.03,25.08524207]
[1641424274530,2.89917586,153.06,153.03,25.08524207]
[1641424274730,0.092,153.06,153.03,25.08524207]
[1641424274932,0.092,153.06,153.04,0.03301416]
[1641424275934,12.57770976,153.12,153.05,47.0]
[1641424276232,28.5530021,153.16,153.12,5.18533258]
[1641424276436,18.7528021,153.16,153.12,5.18533258]
[1641424278436,18.7528021,153.16,153.12,14.97913258]
[1641424278837,1.84684578,153.15,153.12,5.18533258]
[1641424279041,1.84684578,153.15,153.13,0.03301416]
[1641424279336,5.53138577,153.14,153.13,0.03301416]
[1641424279540,5.53138577,153.14,153.12,5.68533258]
[1641424279738,7.37823155,153.14,153.12,5.18533258]
[1641424279937,4.34603158,153.14,153.12,5.18533258]
[1641424280638,18.7528021,153.16,153.13,0.53301416]
[1641424281438,1.84698879,153.14,153.13,0.53301416]
[1641424282339,0.0063021,153.16,153.14,38.0]
[1641424282539,0.0063021,153.16,153.15,44.53301416]
[1641424282840,0.0063021,153.16,153.15,44.78301416]
[1641424283239,0.0063021,153.16,153.15,1.03301416]
[1641424283443,0.0063021,153.16,153.15,0.53301416]
[1641424284041,5.53768787,153.16,153.12,5.18533258]
[1641424284244,2.76685423,153.15,153.12,5.18533258]
[1641424284645,0.0063021,153.16,153.12,5.18533258]
[1641424284844,0.0063021,153.16,153.13,0.53301416]
[1641424286047,3.03219997,153.15,153.13,0.53301416]
[1641424286248,0.0063021,153.16,153.13,0.53301416]
[1641424287848,0.0063021,153.16,153.14,25.56904741]
[1641424288448,0.0063021,153.16,153.15,30.53301416]
[1641424288650,0.0063021,153.16,153.15,0.53301416]
[1641424289050,0.0063021,153.16,153.15,8.45301416]
[1641424294467,0.0063021,153.16,153.15,8.95301416]
[1641424294683,0.0063021,153.16,153.15,8.45301416]
[1641424295786,0.0063021,153.16,153.15,0.53301416]
[1641424295986,5.53768787,153.16,153.15,0.53301416]
[1641424296185,5.53768787,153.16,153.12,5.18533258]
[1641424296988,9.23106279,153.16,153.12,5.18533258]
[1641424297584,5.18533258,153.12,153.05,87.3698]
[1641424297786,5.18533258,153.12,153.05,7.92]
[1641424297984,5.18533258,153.12,153.01,7.92]
[1641424298185,2.42723627,153.1,153.01,7.92]
[1641424298586,2.42723627,153.1,153.01,34.86534442]
[1641424299285,2.42723627,153.1,153.01,35.36534442]
[1641424299488,2.42723627,153.1,153.01,7.92]
[1641424299686,2.42723627,153.1,152.98,9.8032]
[1641424299886,2.68723627,153.1,152.97,7.92]
[1641424300486,28.11125367,153.1,152.98,30.86345409]
[1641424300686,12.49163627,153.1,152.98,30.86345409]
[1641424300889,6.12061119,153.1,152.98,30.86345409]
[1641424301090,6.12061119,153.1,152.98,30.93345409]
[1641424301389,3.69337492,153.1,152.99,7.92]
[1641424301589,3.69337492,153.1,153.0,0.07]
[1641424301789,7.5e-06,153.12,153.05,76.12255863]
[1641424301994,7.5e-06,153.12,153.05,84.11255863]
[1641424302192,3.69510195,153.12,153.06,0.25]
[1641424302392,3.69510195,153.12,153.07,7.99]
[1641424302592,1.95e-06,153.12,153.08,7.92]
[1641424302793,1.95e-06,153.12,153.09,9.7963]
[1641424302991,0.0063021,153.16,153.1,0.53301416]
[1641424303193,0.0063021,153.16,153.11,30.23867677]
[1641424304395,0.0063021,153.16,153.11,38.15867677]
[1641424304795,0.0063021,153.16,153.11,38.65867677]
[1641424305495,0.0063021,153.16,153.13,9.7939]
[1641424305997,0.0063021,153.16,153.14,24.46037683]
[1641424307598,7.96091486,153.16,153.14,24.46037683]
[1641424307800,7.96091486,153.16,153.11,17.7153]
[1641424308298,9.7966,153.2,153.11,18.2153]
[1641424308598,9.7966,153.2,153.11,17.7153]
[1641424308805,36.06652655,153.2,153.11,17.7153]
[1641424309202,9.7966,153.2,153.11,7.92]
[1641424309402,3.05041769,153.19,153.11,7.92]
[1641424310503,3.05041769,153.19,153.11,17.7158]
[1641424310701,5.54123144,153.23,153.11,17.7858]
[1641424310902,5.54123144,153.23,153.12,0.25]
[1641424311103,5.54123144,153.23,153.13,40.6293]
[1641424311504,5.54123144,153.23,153.14,26.58072649]
[1641424311702,2.94637784,153.22,153.14,26.83072649]
[1641424311905,2.94637784,153.22,153.14,27.08072649]
[1641424312307,2.94637784,153.22,153.14,26.58072649]
[1641424312504,2.94637784,153.22,153.14,27.08072649]
[1641424312704,5.54123144,153.26,153.14,27.08072649]
[1641424312905,5.54123144,153.26,153.18,9.7917]
[1641424313804,2.39411965,153.25,153.19,22.69201789]
[1641424314207,2.39411965,153.25,153.15,32.6372]
[1641424314407,2.39411965,153.25,153.14,7.92]
[1641424314614,2.65411965,153.25,153.14,7.92]
[1641424315010,0.25,153.24,153.14,7.92]
[1641424315208,0.25,153.24,153.15,30.77311236]
[1641424315209,2.32251531,153.21,153.15,30.77311236]
[1641424316011,5.54123144,153.26,153.15,30.77311236]
[1641424316210,5.54123144,153.26,153.15,31.27311236]
[1641424316414,5.54123144,153.26,153.15,30.77311236]
[1641424316614,5.54123144,153.26,153.15,31.27311236]
[1641424316812,5.54123144,153.26,153.16,7.92]
[1641424317013,8.5516922,153.26,153.16,7.92]
[1641424317614,8.5516922,153.26,153.16,8.42]
[1641424317812,8.5516922,153.26,153.16,7.92]
[1641424318012,3.27046076,153.26,153.16,7.92]
[1641424318413,3.01046076,153.26,153.16,7.92]
[1641424318614,3.01046076,153.26,153.2,9.7905]
[1641424318820,5.54123144,153.27,153.17,0.25]
[1641424319015,5.54123144,153.27,153.17,8.17]
[1641424319415,5.54123144,153.27,153.17,8.93]
[1641424319612,5.54123144,153.3,153.28,5.54123144]
[1641424319812,5.54123144,153.3,153.29,23.99451209]
[1641424320019,12.03046823,153.35,153.29,0.99451209]
[1641424320718,12.03046823,153.35,153.29,27.63127582]
[1641424320939,78.0367,153.4,153.29,27.63127582]
[1641424321141,9.7837,153.4,153.29,37.41537582]
[1641424321440,9.25389401,153.41,153.29,37.41537582]
[1641424321842,2.65366194,153.4,153.29,37.41537582]
[1641424322340,2.65366194,153.4,153.29,37.91537582]
[1641424322741,2.65366194,153.4,153.33,9.7824]
[1641424322944,0.25,153.39,153.33,9.7824]
[1641424323443,0.25,153.39,153.3,7.92]
[1641424323842,47.0,153.38,153.28,5.54123144]
[1641424324042,2.95930682,153.37,153.28,5.54123144]
[1641424324443,23.23178718,153.43,153.29,7.99]
[1641424324643,23.23178718,153.43,153.3,29.68784887]
[1641424325047,14.7621945,153.42,153.3,29.68784887]
[1641424325246,14.7621945,153.42,153.32,9.7826]
[1641424325747,2.47717911,153.41,153.3,29.68784887]
[1641424325946,2.97717911,153.41,153.3,29.68784887]
[1641424326547,12.25997911,153.41,153.3,39.54184887]
[1641424327149,12.75997911,153.41,153.3,39.54184887]
[1641424327348,12.25997911,153.41,153.3,39.54184887]
[1641424328148,1.97717911,153.41,153.31,8.17]
[1641424328348,129.58409401,153.49,153.36,9.7802]
[1641424328548,57.08869401,153.49,153.36,9.7802]
[1641424328751,9.25389401,153.49,153.37,0.07]
[1641424328950,9.25389401,153.49,153.37,35.02468918]
[1641424329351,12.18958337,153.49,153.37,35.52468918]
[1641424329852,12.18958337,153.49,153.37,35.45468918]
[1641424330057,2.93568936,153.49,153.38,0.07]
[1641424330251,2.93568936,153.49,153.4,29.44448316]
[1641424330451,2.93568936,153.49,153.41,7.92]
[1641424330651,2.93568936,153.49,153.44,22.51545974]
[1641424330852,0.32731288,153.5,153.44,22.58545974]
[1641424331052,0.32731288,153.5,153.44,22.51545974]
[1641424331851,0.32731288,153.5,153.44,23.01545974]
[1641424332051,0.32731288,153.5,153.45,0.32]
[1641424332254,1999.34537424,153.48,153.46,7.92]
[1641424332452,1998.51806136,153.48,153.47,3.03219997]
[1641424332653,1998.51806136,153.48,153.46,7.92]
[1641424333751,4.74287148,153.47,153.46,17.6916]
[1641424334251,4.74287148,153.47,153.46,7.92]
[1641424334651,2.03768787,153.47,153.46,7.92]
[1641424334850,2.29768787,153.47,153.46,7.92]
[1641424335654,2.03768787,153.47,153.46,7.92]
[1641424335852,0.26,153.47,153.46,7.92]
[1641424336053,2.29768787,153.47,153.46,7.92]
[1641424336653,2.03768787,153.47,153.46,7.92]
[1641424338059,2001.09662938,153.48,153.46,10.95219997]
[1641424338258,2001.09662938,153.48,153.47,9.7726]
[1641424338458,1998.51806136,153.48,153.47,9.7726]
[1641424339158,2000.55574923,153.48,153.47,10.0226]
[1641424339359,2000.55574923,153.48,153.47,9.7726]
[1641424339583,1998.51806136,153.48,153.47,9.7726]
[1641424340462,2000.55574923,153.48,153.47,9.7726]
[1641424340659,2000.55574923,153.48,153.47,17.6926]
[1641424341462,2000.55574923,153.48,153.47,17.9426]
[1641424341660,1998.51806136,153.48,153.47,20.72479997]
[1641424342264,1406.19466136,153.48,153.47,39.72479997]
[1641424342463,1381.27975841,153.48,153.47,21.47479997]
[1641424342665,1381.27975841,153.48,153.47,22.94795894]
[1641424342866,1281.73015841,153.48,153.47,23.01795894]
[1641424343067,1281.73015841,153.48,153.47,24.01247103]
[1641424343264,1216.60725841,153.48,153.47,24.01247103]
[1641424343862,1151.48425841,153.48,153.47,43.01247103]
[1641424344062,1143.48425841,153.48,153.47,24.01247103]
[1641424344264,1139.48425841,153.48,153.47,24.27247103]
[1641424344463,1023.36705841,153.48,153.47,43.27247103]
[1641424344664,800.62882433,153.48,153.47,24.27247103]
[1641424344965,735.51372433,153.48,153.47,24.01247103]
[1641424345668,670.38902433,153.48,153.47,24.01247103]
[1641424346065,605.26582433,153.48,153.47,24.01247103]
[1641424347097,378.23629237,153.48,153.47,24.01247103]
[1641424347273,0.16413312,153.52,153.48,18.0]
[1641424347470,0.16413312,153.52,153.49,7.92]
[1641424347670,0.16413312,153.52,153.5,0.07]
[1641424347870,2.33324161,153.63,153.51,7.92]
[1641424348069,2.33324161,153.63,153.52,0.32]
[1641424348273,2.33324161,153.63,153.53,7.92]
[1641424348470,2.33324161,153.63,153.53,8.42]
[1641424348670,2.33324161,153.63,153.58,9.7656]
[1641424348871,2.33324161,153.63,153.58,17.6856]
[1641424349073,103.91505388,153.66,153.58,17.6856]
[1641424349672,103.91505388,153.66,153.55,6.7403]
[1641424349673,27.75441405,153.63,153.55,6.7403]
[1641424349871,11.5588995,153.64,153.54,7.92]
[1641424350071,2.46042617,153.62,153.54,7.92]
[1641424350272,2.46042617,153.62,153.5,9.7705]
[1641424350472,2.72042617,153.62,153.5,9.7705]
[1641424350875,2.36188489,153.57,153.5,9.7705]
[1641424351073,2.62188489,153.57,153.5,9.7705]
[1641424351876,2.62188489,153.57,153.48,9.7715]
[1641424353176,2.62188489,153.57,153.48,10.2715]
[1641424353379,2.62188489,153.57,153.48,9.7715]
[1641424353877,2.62188489,153.57,153.49,0.25]
[1641424354079,2.36188489,153.57,153.49,0.25]
[1641424354278,526.67353465,153.78,153.5,1.54315897]
[1641424354478,526.67353465,153.78,153.5,1.80315897]
[1641424354479,48.7947,153.7,153.5,1.80315897]
[1641424354682,74.86860644,153.7,153.51,9.64315897]
[1641424354879,9.7653,153.68,153.52,0.07]
[1641424355078,48.7947,153.7,153.58,9.7648]
[1641424355279,77.69946001,153.66,153.58,17.6848]
[1641424355479,77.69946001,153.66,153.58,18.1848]
[1641424355680,77.69946001,153.66,153.58,17.6848]
[1641424356283,77.69946001,153.66,153.58,18.1848]
[1641424357084,77.69946001,153.66,153.58,17.6848]
[1641424359385,1.63227996,153.65,153.58,18.1848]
[1641424359585,30.32931094,153.64,153.58,7.92]
[1641424359987,2.75899043,153.63,153.58,7.92]
[1641424360385,3.01899043,153.63,153.58,7.92]
[1641424360788,3.68255875,153.62,153.58,7.92]
[1641424360992,3.94255875,153.62,153.58,7.92]
[1641424361590,2.75899043,153.63,153.58,17.6861]
[1641424361789,1.63227996,153.65,153.58,17.6861]
[1641424362392,1.63227996,153.65,153.58,18.1861]
[1641424362594,3.68230522,153.64,153.58,18.1861]
[1641424362994,3.68230522,153.64,153.61,9.7638]
[1641424363400,1.63227996,153.65,153.62,0.25]
[1641424363601,1.63227996,153.65,153.62,8.17]
[1641424363798,1.63227996,153.65,153.62,7.92]
[1641424363999,2.63985655,153.64,153.63,9.7622]
[1641424364199,38.06178257,153.64,153.63,5.7622]
[1641424364599,6.06178257,153.64,153.63,5.7622]
[1641424364801,1.63227996,153.65,153.63,5.7622]
[1641424365006,22.5423,153.73,153.69,12.59090596]
[1641424365201,139.5152,153.77,153.74,1.65304204]
[1641424365401,3.03155353,153.75,153.74,5.68777085]
[1641424365601,14.5481995,153.79,153.74,5.68777085]
[1641424365806,1.7912995,153.79,153.74,5.68777085]
[1641424366403,1.7912995,153.79,153.74,15.44327085]
[1641424366904,9.95e-05,153.79,153.75,7.92]
[1641424367303,9.95e-05,153.79,153.75,8.42]
[1641424367702,9.95e-05,153.79,153.76,9.754]
[1641424367903,9.95e-05,153.79,153.76,18.174]
[1641424368308,9.95e-05,153.79,153.77,0.32]
[1641424368506,9.25389401,153.9,153.78,7.92]
[1641424368708,9.25389401,153.9,153.78,17.6707]
[1641424368906,3.67793838,153.87,153.78,18.1707]
[1641424369207,24.54606882,153.86,153.78,18.1707]
[1641424369507,24.54606882,153.86,153.78,7.92]
[1641424369735,24.54606882,153.86,153.74,15.44257085]
[1641424369934,24.54606882,153.86,153.74,5.68777085]
[1641424370737,2.63847194,153.85,153.74,5.68777085]
[1641424370935,13.67372271,153.85,153.74,0.00777085]
[1641424371135,13.93372271,153.85,153.74,0.00777085]
[1641424371336,30.09431505,153.82,153.74,0.00777085]
[1641424371537,30.35431505,153.82,153.74,0.00777085]
[1641424371835,30.09431505,153.82,153.74,0.00777085]